[Event "O2C Doeberl Cup 2019"]
[Site "Canberra"]
[Date "2019.04.19"]
[Round "3.8"]
[White "Goh, Ethan"]
[Black "Lane, Gary W"]
[Result "0-1"]
[ECO "A89"]
[WhiteElo "1871"]
[BlackElo "2357"]
[Annotator "NA"]
[PlyCount "106"]
[EventDate "2019.04.17"]
[EventType "swiss"]
[EventCountry "AUS"]
[SourceTitle "playchess.com"]
[Source "ChessBase"]
[SourceQuality "1"]
[TimeControl "5400+30"]

1. d4 {[%emt 0:00:00]} f5 {[%emt 0:00:00]} 2. g3 {[%emt 0:00:33]} Nf6 {[%emt 0:00:03]} 3. Bg2 {[%emt 0:00:17]} g6 {[%emt 0:00:38]} 4. Nf3 {[%emt 0:01:10]} Bg7 {[%emt 0:00:34]} 5. O-O {[%emt 0:00:10]} O-O {[%emt 0:00:20]} 6. c4 {[%emt 0:00:10]} d6 {[%emt 0:00:18]} 7. Nc3 {[%emt 0:00:31]} Nc6 {[%emt 0:00:08]} 8. d5 {[%emt 0:03:21]} Na5 {[%emt 0:00:04]} 9. Nd2 {[%emt 0:01:26]} c5 {[%emt 0:01:09]} 10. a3 {[%emt 0:02:45]} Bd7 {[%emt 0:04:52]} 11. Rb1 {[%emt 0:02:15] A89: Dutch Defence: Leningrad System: 5 Nf3 0-0 6 0-0 d6 7 Nc3 Nc6} Rc8 {[%emt 0:01:35]} (11... a6 12. Qc2 Qc7 13. b3 b5 14. Bb2 Rab8 15. e3 Kh8 16. Ne2 bxc4 17. bxc4 g5 18. Bc3 h6 {1-0 (38) Batchuluun,T (2513)-Ebeling,D (2468) Baku 2016}) 12. e3 $146 {[%emt 0:02:46]} ({Predecessor:} 12. b3 a6 13. a4 Rb8 14. Qc2 b5 15. axb5 axb5 16. cxb5 Bxb5 17. b4 cxb4 18. Rxb4 Bd7 {½-½ (37) Zierke,O (2300)-Papenbrock,V (2188) Corfu 2007}) 12... a6 {[%emt 0:06:21]} (12... e5 $11) 13. Qe2 {[%emt 0:04:34]} Qe8 {[%emt 0:04:20]} 14. Re1 {[%emt 0:04:47]} b5 {[%emt 0:04:46]} 15. b3 {[%emt 0:07:44]} Rb8 {[%emt 0:09:48]} 16. b4 {[%emt 0:02:55]} cxb4 {[%emt 0:08:38]} 17. axb4 {[%emt 0:00:30]} Nxc4 {[%emt 0:02:53]} 18. Nxc4 {[%emt 0:00:21]} Rc8 {[%emt 0:01:05]} 19. Nxd6 {[%emt 0:03:17]} exd6 {[%emt 0:00:16]} 20. Bd2 {[%emt 0:00:56]} Ng4 {[%emt 0:03:06]} 21. Rb3 {[%emt 0:00:24]} Rc7 {[%emt 0:04:42]} 22. f4 {[%emt 0:05:48]} (22. Rc1 $142) 22... Qc8 {[%emt 0:04:31]} 23. Qd3 {[%emt 0:00:47]} Re8 {[%emt 0:00:12]} 24. Bf3 {[%emt 0:04:43]} Nf6 {[%emt 0:03:21]} 25. Kg2 {[%emt 0:00:15] [#]} ({Better is} 25. Qb1 $15) 25... Rc4 {[%emt 0:02:48]} (25... Ne4 $142 $1 {[%cal Re4d2][%mdl 512]} 26. Ne2 (26. Nxe4 fxe4) 26... Nxd2 27. Qxd2 Rc2) 26. Ra1 {[%emt 0:05:47] [#]} (26. Ne2 $17) 26... Ne4 $1 {[%emt 0:01:34]} 27. Raa3 {[%emt 0:00:16] [#]} a5 $1 {[%emt 0:05:57]} 28. Ne2 {[%emt 0:04:57]} a4 {[%emt 0:03:56]} 29. Rb1 {[%emt 0:01:51]} Nxd2 {[%emt 0:02:13]} 30. Qxd2 {[%emt 0:01:21]} Rc2 {[%emt 0:00:26]} 31. Qd3 {[%emt 0:01:24] [#]} Bb2 {[%emt 0:03:50]} (31... Re4 $142 $1 {[%mdl 512]} 32. Kh3 (32. Bxe4 fxe4) 32... Bb2) 32. Ra2 {[%emt 0:00:09]} a3 $1 {[%emt 0:00:13]} 33. Rxa3 {[%emt 0:01:22]} Bxa3 34. Qxa3 {[%emt 0:00:07]} Qc4 {[%emt 0:01:32]} 35. Kf2 {[%emt 0:01:30]} Ra2 {[%emt 0:00:44]} 36. Qb3 {[%emt 0:02:03]} Rc8 {[%emt 0:03:50]} 37. Qd1 {[%emt 0:02:39]} Qc2 {[%emt 0:00:40]} 38. Qe1 {[%emt 0:00:20]} Rc4 {[%emt 0:04:01]} 39. h4 {[%emt 0:01:13]} h5 $19 40. Ra1 {[%emt 0:00:30]} Qa4 41. Rb1 {[%emt 0:00:30]} Qa3 42. Qd1 {[%emt 0:00:30]} Qa4 {[%emt 0:04:58]} 43. Qe1 {[%emt 0:01:16]} Qa3 {[%emt 0:03:06]} 44. Qd1 {[%emt 0:00:45]} Rxb4 {[%emt 0:02:09]} 45. Rc1 {[%emt 0:01:33]} Rc4 {[%emt 0:00:05]} 46. Rxc4 {[%emt 0:00:10]} bxc4 {[%emt 0:00:13]} 47. Qd4 {[%emt 0:00:05]} Qc5 {[%emt 0:00:21]} 48. Qf6 {[%emt 0:00:21]} Be8 {[%emt 0:00:05]} 49. Qe7 {[%emt 0:11:51]} Bf7 {[%emt 0:00:11]} 50. Kg1 {[%emt 0:00:06]} c3 {[%emt 0:00:58]} 51. Qd8+ {[%emt 0:01:01]} Kg7 {[%emt 0:00:07]} 52. Nd4 {[%emt 0:00:04]} c2 {[%emt 0:03:07]} 53. Nxf5+ {[%emt 0:00:34]} Kh7 {[%emt 0:00:05]} 0-1

[Event "O2C Doeberl Cup 2019"]
[Site "Canberra"]
[Date "2019.04.19"]
[Round "4.2"]
[White "Smirnov, Anton"]
[Black "Lane, Gary W"]
[Result "1-0"]
[ECO "C70"]
[WhiteElo "2567"]
[BlackElo "2357"]
[Annotator "RC"]
[PlyCount "77"]
[EventDate "2019.04.17"]
[EventType "swiss"]
[EventCountry "AUS"]
[SourceTitle "playchess.com"]
[Source "ChessBase"]
[SourceQuality "1"]
[TimeControl "5400+30"]

1. e4 {[%emt 0:00:00]} e5 {[%emt 0:00:00]} 2. Nf3 {[%emt 0:00:00]} Nc6 {[%emt 0:00:00]} 3. Bb5 {[%emt 0:00:00]} a6 {[%emt 0:00:00]} 4. Ba4 {[%emt 0:00:00]} Nge7 {[%emt 0:01:41]} 5. c3 {[%emt 0:00:08]} g6 {[%emt 0:00:14]} 6. d4 {[%emt 0:00:06]} exd4 {[%emt 0:00:15]} 7. cxd4 {[%emt 0:00:04]} b5 {[%emt 0:00:05]} 8. Bc2 {[%emt 0:00:10]} Bg7 {[%emt 0:06:02]} 9. O-O {[%emt 0:04:38]} O-O {[%emt 0:00:55]} 10. d5 {[%emt 0:01:20]} Na5 {[%emt 0:00:29]} 11. Nc3 {[%emt 0:10:12]} d6 {[%emt 0:02:40]} 12. Rb1 {[%emt 0:06:44]} c5 {[%emt 0:06:07]} 13. dxc6 {[%emt 0:00:43]} Naxc6 {[%emt 0:02:39]} 14. Bg5 {[%emt 0:02:43]} h6 {[%emt 0:04:23]} 15. Bh4 {[%emt 0:00:31]} Bg4 {[%emt 0:07:11]} 16. h3 {[%emt 0:01:18]} Bxf3 {[%emt 0:03:02]} 17. Qxf3 {[%emt 0:00:05]} Nd4 {[%emt 0:00:06]} 18. Qd1 {[%emt 0:00:48]} Qd7 {[%emt 0:20:22]} 19. Bb3 {[%emt 0:04:15]} Kh8 {[%emt 0:02:05]} 20. Nd5 {[%emt 0:09:06]} Nxd5 {[%emt 0:05:04]} 21. Bxd5 {[%emt 0:00:08]} Rac8 {[%emt 0:00:28]} 22. f3 {[%emt 0:01:22]} f5 {[%emt 0:01:42]} 23. Bf2 {[%emt 0:01:02]} Ne6 {[%emt 0:02:15]} 24. Qd2 {[%emt 0:04:40]} fxe4 {[%emt 0:07:31]} 25. Bxe4 {[%emt 0:00:27]} Nf4 {[%emt 0:01:38]} 26. Be3 {[%emt 0:05:44]} g5 {[%emt 0:06:13]} 27. Rbd1 {[%emt 0:10:42]} Be5 {[%emt 0:01:40]} 28. Bd4 {[%emt 0:00:58]} Qg7 {[%emt 0:07:25]} 29. Bxe5 {[%emt 0:01:40]} dxe5 {[%emt 0:00:44]} 30. Qd6 {[%emt 0:01:55]} h5 {[%emt 0:03:08]} 31. Qxa6 {[%emt 0:00:58]} g4 {[%emt 0:00:43]} 32. hxg4 {[%emt 0:04:10]} hxg4 {[%emt 0:02:25]} 33. Rd6 {[%emt 0:06:52]} Qg5 {[%emt 0:00:18]} 34. Rh6+ {[%emt 0:00:19]} Kg8 {[%emt 0:00:27]} 35. Kh1 {[%emt 0:05:01]} gxf3 {[%emt 0:01:48]} 36. g3 {[%emt 0:02:17]} Qxg3 {[%emt 0:02:04]} 37. Rh8+ {[%emt 0:00:17]} Kf7 {[%emt 0:00:04]} 38. Qb7+ {[%emt 0:00:13]} Kf6 {[%emt 0:02:01]} 39. Rh6+ {[%emt 0:00:07]} 1-0

[Event "O2C Doeberl Cup 2019"]
[Site "Canberra"]
[Date "2019.04.20"]
[Round "6.3"]
[White "Bjelobrk, Igor"]
[Black "Song, Raymond"]
[Result "1/2-1/2"]
[ECO "E11"]
[WhiteElo "2386"]
[BlackElo "2329"]
[Annotator "NA"]
[PlyCount "125"]
[EventDate "2019.04.17"]
[EventType "swiss"]
[EventCountry "AUS"]
[SourceTitle "playchess.com"]
[Source "ChessBase"]
[SourceQuality "1"]
[TimeControl "5400+30"]

1. d4 {[%emt 0:00:00]} Nf6 {[%emt 0:00:00]} 2. c4 {[%emt 0:00:00]} e6 {[%emt 0:00:00]} 3. g3 {[%emt 0:00:00]} d5 {[%emt 0:00:00]} 4. Nf3 {[%emt 0:00:00]} Bb4+ {[%emt 0:00:00]} 5. Bd2 {[%emt 0:00:00]} Be7 {[%emt 0:00:00]} 6. Bg2 {[%emt 0:00:03]} O-O {[%emt 0:00:00]} 7. O-O {[%emt 0:00:06]} Nbd7 {[%emt 0:00:00]} 8. Qc2 {[%emt 0:00:06] E11: Bogo-Indian} Ne4 {[%emt 0:00:01]} (8... c6 9. Bf4 b6 10. cxd5 cxd5 11. Rc1 Bb7 12. Bc7 Qe8 13. Qb3 Nb8 14. a4 Ne4 15. Nc3 Nxc3 16. Rxc3 Na6 17. Bf4 Bb4 18. Rc2 Qe7 19. Rac1 Rac8 20. Ne5 Rxc2 21. Qxc2 {½-½ (48) Ding,L (2812)-Karjakin,S (2753) Astana 2019}) 9. Nc3 {[%emt 0:00:30]} Nxd2 {[%emt 0:00:04]} 10. Nxd2 {[%emt 0:00:05]} c6 {[%emt 0:00:03]} 11. Rfd1 {[%emt 0:00:26]} Rb8 {[%emt 0:00:04]} 12. a4 $146 {[%emt 0:11:20]} ({Predecessor:} 12. e4 dxe4 13. Ndxe4 f5 14. Nd2 e5 15. d5 Qc7 16. a3 e4 17. b4 Nf6 18. dxc6 bxc6 {½-½ (58) Vasquez Schroder,R (2554)-Peralta,F (2559) Barcelona 2018}) 12... a5 {[%emt 0:01:41]} 13. e3 {[%emt 0:00:40]} f5 {[%emt 0:03:27]} 14. f4 {[%emt 0:02:30]} Nf6 {[%emt 0:01:03]} 15. Nf3 {[%emt 0:02:22]} Bd7 {[%emt 0:00:30]} 16. Ne5 {[%emt 0:00:43]} Bd6 {[%emt 0:07:33]} 17. Rac1 {[%emt 0:04:47]} Qe7 {[%emt 0:01:12]} 18. Rb1 {[%emt 0:08:44]} Ne4 {[%emt 0:09:02]} 19. Rdc1 {[%emt 0:01:51]} Be8 {[%emt 0:02:27]} 20. Qe2 {[%emt 0:01:13]} Kh8 {[%emt 0:00:25]} 21. Nxe4 {[%emt 0:06:42]} dxe4 {[%emt 0:00:47]} 22. c5 {[%emt 0:02:27]} Bxe5 {[%emt 0:00:14]} 23. dxe5 {[%emt 0:15:19]} g5 {[%emt 0:02:35]} 24. b4 {[%emt 0:08:52]} axb4 {[%emt 0:00:44]} 25. Rxb4 {[%emt 0:00:06]} gxf4 {[%emt 0:01:42]} 26. exf4 {[%emt 0:03:46]} Rd8 {[%emt 0:00:11]} 27. Bf1 {[%emt 0:00:24]} Rg8 {[%emt 0:02:33]} 28. Qe3 {[%emt 0:00:24]} Bh5 {[%emt 0:00:18]} 29. Rcb1 {[%emt 0:03:04]} Rd7 {[%emt 0:00:08]} 30. a5 {[%emt 0:00:58]} Bf3 {[%emt 0:01:20]} 31. a6 {[%emt 0:04:36]} bxa6 {[%emt 0:01:11]} 32. Bxa6 {[%emt 0:00:55]} Qd8 $15 {[%emt 0:15:24]} 33. Rb6 {[%emt 0:02:50]} ({Better is} 33. Be2 $15) 33... Rd1+ {[%emt 0:02:16]} 34. Bf1 {[%emt 0:01:18]} Qd2 {[%emt 0:19:02]} 35. Qxd2 {[%emt 0:00:54]} Rxd2 {[%emt 0:00:02]} 36. Rxc6 {[%emt 0:03:19]} e3 {[%emt 0:01:47]} 37. Rd6 {[%emt 0:00:05]} Rc8 {[%emt 0:09:42]} 38. Re1 {[%emt 0:01:16]} Rxc5 {[%emt 0:00:33]} 39. Rxe3 {[%emt 0:00:14]} Bd5 {[%emt 0:00:02]} 40. Re2 {[%emt 0:02:08]} Rxe2 {[%emt 0:06:45]} 41. Bxe2 {[%emt 0:00:05]} Rc2 {[%emt 0:01:02]} 42. Kf1 {[%emt 0:01:17]} Kg7 {[%emt 0:00:01]} 43. Ke1 {[%emt 0:00:16]} Rb2 {[%emt 0:00:31]} 44. h4 {[%emt 0:06:33]} Rb3 {[%emt 0:00:02]} 45. Kf2 {[%emt 0:02:49]} Rb2 {[%emt 0:00:02]} 46. Ke3 {[%emt 0:00:21]} Rb3+ {[%emt 0:00:03]} 47. Bd3 {[%emt 0:01:54]} Kf7 {[%emt 0:02:57]} 48. Kd4 {[%emt 0:00:48]} Ke7 {[%emt 0:02:00]} 49. Rxd5 {[%emt 0:01:26]} exd5 {[%emt 0:00:02]} 50. Bxf5 {[%emt 0:00:09]} Rxg3 {[%emt 0:00:02]} 51. Kxd5 {[%emt 0:00:42]} h6 {[%emt 0:00:14]} 52. h5 {[%emt 0:00:38]} Rg1 {[%emt 0:01:07]} 53. Bd3 {[%emt 0:01:00]} Rd1 {[%emt 0:00:23]} 54. Ke4 {[%emt 0:00:10]} Rh1 {[%emt 0:00:14]} 55. f5 {[%emt 0:00:34]} Rh4+ {[%emt 0:00:41]} 56. Kd5 {[%emt 0:00:12]} Rf4 {[%emt 0:00:06]} 57. Be4 {[%emt 0:00:32]} Kf7 {[%emt 0:04:17]} 58. Kd4 {[%emt 0:00:53]} Rh4 {[%emt 0:00:01]} 59. Ke3 {[%emt 0:00:22]} Rxh5 {[%emt 0:00:51]} 60. Bd5+ {[%emt 0:00:13]} Kf8 {[%emt 0:00:34]} 61. Kf4 {[%emt 0:00:18]} Rh4+ {[%emt 0:00:21]} 62. Kf3 {[%emt 0:00:14]} Rd4 {[%emt 0:00:19]} 63. Be6 {[%emt 0:01:48]} 1/2-1/2

[Event "O2C Doeberl Cup 2019"]
[Site "Canberra"]
[Date "2019.04.20"]
[Round "6.4"]
[White "Padmini, Rout"]
[Black "Tao, Trevor"]
[Result "1-0"]
[ECO "B11"]
[WhiteElo "2364"]
[BlackElo "2364"]
[Annotator "NA"]
[PlyCount "59"]
[EventDate "2019.04.17"]
[EventType "swiss"]
[EventCountry "AUS"]
[SourceTitle "playchess.com"]
[Source "ChessBase"]
[SourceQuality "1"]
[TimeControl "5400+30"]

{[%evp 10,53,40,33,28,41,67,52,87,51,64,61,60,80,78,54,52,60,90,79,74,32767,32767,90,68,68,105,96,95,102,115,94,133,147,145,32767,32767,32767,32767,116,153,137,162,156,256,262]} 1. e4 {[%emt 0:00:14]} c6 {[%emt 0:00:00]} 2. Nc3 {[%emt 0:00:09]} d5 {[%emt 0:00:00]} 3. Nf3 {[%emt 0:00:08]} dxe4 {[%emt 0:00:03]} 4. Nxe4 {[%emt 0:00:03]} Nf6 {[%emt 0:00:34]} 5. Qe2 {[%emt 0:00:33]} Qd5 {[%emt 0:03:25]} 6. Nxf6+ {[%emt 0:02:14] B11: Caro-Kann: Two Knights Variation} (6. Nc3 Qh5 7. Qe5 Qxe5+ 8. Nxe5 Bf5 9. Bc4 e6 10. d3 Nbd7 11. Nxd7 Nxd7 12. O-O Be7 13. a4 {0-1 (51) Harikrishna,P (2729)-Karjakin,S (2753) Kolkata 2018}) 6... gxf6 {[%emt 0:00:04]} 7. g3 {[%emt 0:01:00]} Bf5 $146 {[%emt 0:00:49]} ({Predecessor:} 7... Qe6 8. a4 a5 9. d4 Qxe2+ 10. Bxe2 Bf5 11. c3 e6 12. Nd2 Bd6 13. h4 {½-½ (40) Van Foreest,J (2621)-Arutinian,D (2555) Skopje 2019}) 8. d3 {[%emt 0:00:17]} Qd7 {[%emt 0:00:38]} 9. Bd2 {[%emt 0:02:50]} Na6 {[%emt 0:00:29]} 10. Bg2 {[%emt 0:03:39]} O-O-O {[%emt 0:01:31]} 11. O-O {[%emt 0:01:07]} Bh3 {[%emt 0:02:47]} 12. b4 {[%emt 0:02:20]} Bxg2 {[%emt 0:00:06]} 13. Kxg2 {[%emt 0:00:05]} e6 {[%emt 0:01:06]} 14. Rfb1 {[%emt 0:01:59]} Nc7 {[%emt 0:00:32]} 15. a4 {[%emt 0:00:35]} e5 {[%emt 0:02:33]} 16. b5 {[%emt 0:07:35]} Bc5 {[%emt 0:00:25]} 17. Be3 {[%emt 0:02:44]} Qd5 {[%emt 0:03:45]} 18. bxc6 {[%emt 0:14:31]} Qxc6 {[%emt 0:00:08]} 19. Bxc5 {[%emt 0:01:35]} Qxc5 {[%emt 0:00:07]} 20. Rb3 {[%emt 0:05:08]} Rd6 {[%emt 0:03:02]} 21. a5 {[%emt 0:02:06]} Rhd8 {[%emt 0:07:14]} 22. Rab1 {[%emt 0:06:46]} b6 {[%emt 0:00:06]} 23. axb6 {[%emt 0:00:46]} Rxb6 {[%emt 0:00:03]} 24. Rxb6 {[%emt 0:03:33]} axb6 {[%emt 0:00:04]} 25. Qe4 {[%emt 0:00:08]} Rd6 {[%emt 0:01:11]} 26. c4 {[%emt 0:00:58]} h6 {[%emt 0:03:06] [#]} (26... Ne6 $16) 27. Nh4 $18 {[%emt 0:03:07]} Qc6 {[%emt 0:00:13]} 28. Nf5 {[%emt 0:00:13]} Qxe4+ {[%emt 0:00:09]} 29. dxe4 {[%emt 0:00:08]} Rd7 {[%emt 0:00:24]} 30. Rxb6 {[%emt 0:00:38]} 1-0

[Event "O2C Doeberl Cup 2019"]
[Site "Canberra"]
[Date "2019.04.20"]
[Round "6.7"]
[White "McClymont, Brodie"]
[Black "Lo, Willis"]
[Result "1-0"]
[ECO "C94"]
[WhiteElo "2360"]
[BlackElo "2072"]
[Annotator "NA"]
[PlyCount "99"]
[EventDate "2019.04.17"]
[EventType "swiss"]
[EventCountry "AUS"]
[SourceTitle "playchess.com"]
[Source "ChessBase"]
[SourceQuality "1"]
[TimeControl "5400+30"]

1. e4 {[%emt 0:00:00]} e5 {[%emt 0:00:00]} 2. Nf3 {[%emt 0:00:00]} Nc6 {[%emt 0:00:00]} 3. Bb5 {[%emt 0:00:00]} a6 {[%emt 0:00:11]} 4. Ba4 {[%emt 0:00:00]} Nf6 {[%emt 0:00:11]} 5. O-O {[%emt 0:00:00]} Be7 {[%emt 0:00:11]} 6. Re1 {[%emt 0:00:00]} b5 {[%emt 0:00:10]} 7. Bb3 {[%emt 0:00:04]} d6 {[%emt 0:00:15]} 8. c3 {[%emt 0:00:04]} O-O {[%emt 0:00:13]} 9. h3 {[%emt 0:00:03]} Nb8 {[%emt 0:00:14]} 10. d3 {[%emt 0:00:05]} Bb7 {[%emt 0:05:39] C94: Closed Ruy Lopez: Breyer Variation with 10 d3} (10... Nbd7 11. Nbd2 Bb7 12. Nf1 Nc5 13. Bc2 Re8 14. Ng3 Bf8 15. b4 Ncd7 16. a4 h6 17. d4 d5 18. dxe5 Nxe4 19. axb5 axb5 20. Rxa8 Bxa8 21. Bf4 c5 22. bxc5 Bxc5 23. Be3 Nxc3 {½-½ (41) Vidit,S (2707)-Yu,Y (2760) Liaocheng 2018}) 11. Nbd2 {[%emt 0:00:40]} c5 {[%emt 0:03:14]} 12. a3 {[%emt 0:04:28]} Nbd7 {[%emt 0:05:20]} 13. Ba2 $146 {[%emt 0:01:21]} ({Predecessor:} 13. Bc2 Qc7 14. d4 cxd4 15. cxd4 Rac8 16. Bb1 exd4 17. Nxd4 d5 18. exd5 Nxd5 19. Ne4 N7f6 20. Nf5 {1-0 (81) Ross,C (2203)-Hope,G (1938) England 2009}) 13... Qc7 {[%emt 0:08:19]} 14. Nf1 {[%emt 0:01:03]} d5 {[%emt 0:06:10]} 15. exd5 {[%emt 0:02:03]} Nxd5 {[%emt 0:01:51]} 16. d4 {[%emt 0:04:01]} e4 {[%emt 0:03:45]} 17. N3d2 {[%emt 0:04:00]} f5 {[%emt 0:03:27]} (17... c4 $11) 18. dxc5 $1 {[%emt 0:02:21]} Kh8 {[%emt 0:04:51]} ({Reject} 18... Bxc5 $6 {[#]} 19. Nxe4 $1 {[%mdl 512]} fxe4 20. Bxd5+ Kh8 21. Be3 $16) ({Don't play} 18... Qxc5 $6 19. Nb3 $16) 19. Nxe4 $1 {[%emt 0:03:51]} fxe4 {[%emt 0:01:11]} 20. Bxd5 {[%emt 0:00:03]} Nxc5 {[%emt 0:00:47]} 21. Bxb7 {[%emt 0:00:13]} Qxb7 {[%emt 0:00:27]} 22. Be3 {[%emt 0:02:43]} Nd3 {[%emt 0:05:59]} 23. Re2 {[%emt 0:00:19]} Rad8 {[%emt 0:05:28]} 24. Qc2 {[%emt 0:00:42]} Bd6 {[%emt 0:11:08]} (24... Rd6 $11) 25. Rd1 {[%emt 0:04:33]} Bb8 {[%emt 0:02:04]} 26. Bd4 {[%emt 0:04:30]} Qf7 {[%emt 0:08:27]} 27. Ng3 {[%emt 0:09:29]} Bxg3 {[%emt 0:11:40]} 28. fxg3 {[%emt 0:00:20]} Qg6 {[%emt 0:02:35]} 29. Kh2 $16 {[%emt 0:00:22]} Rd5 {[%emt 0:02:01]} 30. Qd2 {[%emt 0:01:33]} h5 $2 {[%emt 0:03:19]} (30... Re8 $16) 31. Qe3 {[%emt 0:01:04]} h4 {[%emt 0:00:13]} 32. gxh4 {[%emt 0:00:40]} Nf4 {[%emt 0:01:55]} 33. Qxe4 {[%emt 0:03:53]} Qd6 {[%emt 0:02:16]} 34. Be5 {[%emt 0:01:48]} Rxd1 {[%emt 0:00:22]} 35. Bxd6 {[%emt 0:01:55]} Nxe2 36. Bxf8 {[%emt 0:03:19]} Rh1+ {[%emt 0:01:05]} 37. Kxh1 {[%emt 0:00:04]} Ng3+ {[%emt 0:00:21]} 38. Kg1 {[%emt 0:00:00]} Nxe4 {[%emt 0:00:53]} 39. Bb4 {[%emt 0:00:47]} Nd2 {[%emt 0:00:00]} 40. Kf2 {[%emt 0:00:00]} Nc4 {[%emt 0:00:00]} 41. b3 {[%emt 0:00:00]} Nd2 {[%emt 0:00:06]} 42. Ke2 {[%emt 0:00:00]} Nxb3 {[%emt 0:00:07]} 43. Kd1 {[%emt 0:00:00]} a5 {[%emt 0:00:21]} 44. Kc2 {[%emt 0:00:00]} a4 {[%emt 0:00:23]} 45. Kd3 {[%emt 0:00:05]} Nc1+ {[%emt 0:03:16]} 46. Kd2 {[%emt 0:00:31]} Nb3+ {[%emt 0:00:00]} 47. Ke3 {[%emt 0:00:19]} Nc1 {[%emt 0:00:50]} 48. h5 {[%emt 0:00:50]} Na2 {[%emt 0:00:00]} 49. Kd2 {[%emt 0:00:12]} Nxb4 {[%emt 0:00:00]} 50. cxb4 {[%emt 0:00:09]} 1-0

[Event "O2C Doeberl Cup 2019"]
[Site "Canberra"]
[Date "2019.04.21"]
[Round "7.6"]
[White "Lane, Gary W"]
[Black "Johansen, Darryl K"]
[Result "1/2-1/2"]
[ECO "B89"]
[WhiteElo "2357"]
[BlackElo "2364"]
[Annotator "ChessBase"]
[PlyCount "98"]
[EventDate "2019.04.17"]
[EventType "swiss"]
[EventCountry "AUS"]
[SourceTitle "playchess.com"]
[Source "ChessBase"]
[SourceQuality "1"]
[TimeControl "5400+30"]

1. e4 {[%emt 0:00:00]} c5 {[%emt 0:00:00]} 2. Nf3 {[%emt 0:00:00]} d6 {[%emt 0:00:19]} 3. d4 {[%emt 0:00:00]} Nf6 {[%emt 0:00:08]} 4. Nc3 {[%emt 0:00:00]} cxd4 {[%emt 0:00:06]} 5. Nxd4 {[%emt 0:00:00]} Nc6 {[%emt 0:00:08]} 6. Bc4 {[%emt 0:01:51]} e6 {[%emt 0:00:27]} 7. Be3 {[%emt 0:00:09]} Be7 {[%emt 0:02:32]} 8. Qe2 {[%emt 0:00:29]} a6 {[%emt 0:01:06]} 9. O-O-O {[%emt 0:03:42]} Nxd4 {[%emt 0:00:10]} 10. Bxd4 {[%emt 0:02:29]} b5 {[%emt 0:00:06]} 11. Bb3 {[%emt 0:02:28]} Bb7 {[%emt 0:01:00]} 12. a3 {[%emt 0:05:54]} O-O {[%emt 0:03:19]} 13. g4 {[%emt 0:00:38]} Nd7 {[%emt 0:05:03]} 14. h4 {[%emt 0:17:00]} Rc8 {[%emt 0:04:57]} 15. g5 {[%emt 0:05:38]} e5 {[%emt 0:20:18]} 16. Be3 {[%emt 0:05:28]} Rxc3 {[%emt 0:00:30]} 17. bxc3 {[%emt 0:00:02]} Bxe4 {[%emt 0:01:15]} 18. Rhg1 {[%emt 0:05:24]} Kh8 {[%emt 0:10:51]} 19. h5 {[%emt 0:01:24]} Qa8 {[%emt 0:04:15]} 20. Qg4 {[%emt 0:08:18]} Qc6 {[%emt 0:00:37]} 21. Rg3 {[%emt 0:06:12]} d5 {[%emt 0:02:15]} 22. Kb2 {[%emt 0:07:40]} Nc5 {[%emt 0:20:13]} 23. Bxc5 {[%emt 0:08:51]} Qxc5 {[%emt 0:00:17]} 24. Ra1 {[%emt 0:00:04]} Qxf2 {[%emt 0:00:17]} 25. Rgg1 {[%emt 0:06:32]} Qc5 {[%emt 0:01:46]} 26. h6 {[%emt 0:04:13]} Rc8 {[%emt 0:02:56]} 27. hxg7+ {[%emt 0:02:21]} Kg8 {[%emt 0:01:20]} 28. Rg3 {[%emt 0:00:49]} Rc7 {[%emt 0:00:43]} 29. Qe2 {[%emt 0:05:17]} a5 {[%emt 0:03:55]} 30. a4 {[%emt 0:00:03]} b4 {[%emt 0:00:06]} 31. Qb5 {[%emt 0:00:05]} bxc3+ {[%emt 0:00:30]} 32. Kb1 {[%emt 0:00:01]} Kxg7 {[%emt 0:03:38]} 33. Qe2 {[%emt 0:01:17]} Rb7 {[%emt 0:01:26]} 34. Kc1 {[%emt 0:00:07]} Rb6 {[%emt 0:01:14]} 35. Qe1 {[%emt 0:01:04]} Rxb3 {[%emt 0:03:27]} 36. cxb3 {[%emt 0:00:28]} Qa3+ {[%emt 0:00:15]} 37. Rxa3 {[%emt 0:00:05]} Bxa3+ {[%emt 0:00:05]} 38. Kd1 {[%emt 0:00:04]} c2+ {[%emt 0:00:07]} 39. Kd2 {[%emt 0:00:08]} d4 {[%emt 0:01:27]} 40. Qxe4 {[%emt 0:01:01]} c1=Q+ {[%emt 0:00:14]} 41. Ke2 {[%emt 0:00:05]} Qb2+ {[%emt 0:01:50]} 42. Kf1 {[%emt 0:00:09]} Qc1+ {[%emt 0:00:12]} 43. Kg2 {[%emt 0:00:15]} Qd2+ {[%emt 0:00:20]} 44. Kh3 {[%emt 0:00:07]} Bd6 {[%emt 0:01:17]} 45. Qf5 {[%emt 0:00:09]} Qd1 {[%emt 0:03:31]} 46. Qf6+ {[%emt 0:02:34]} Kg8 {[%emt 0:00:01]} 47. Qxd6 {[%emt 0:00:38]} Qh1+ {[%emt 0:01:23]} 48. Kg4 {[%emt 0:00:07]} Qe4+ {[%emt 0:00:10]} 49. Kh3 {[%emt 0:00:32]} Qh1+ {[%emt 0:00:08]} 1/2-1/2